[Event "Early-Titled-Tuesday-Blitz-May-07-2024"]
[Site "Chess.com"]
[Date "2024.05.07"]
[Round "4"]
[White "djokovic74"]
[Black "nihalsarin"]
[Result "0-1"]
[WhiteElo "2815"]
[BlackElo "3139"]
[TimeControl "180+1"]
[EndTime "8:42:43 PDT"]
[Termination "nihalsarin won by resignation"]

1. e4 {[%clk 0:03:00.9]} 1... Nc6 {[%clk 0:02:55.3]} 2. Nf3 {[%clk 0:03:00.6]}
2... Nf6 {[%clk 0:02:49.9]} 3. e5 {[%clk 0:02:52.6]} 3... Nd5 {[%clk 0:02:37.9]}
4. d4 {[%clk 0:02:51.4]} 4... d6 {[%clk 0:02:23.1]} 5. c4 {[%clk 0:02:51.4]}
5... Nb6 {[%clk 0:02:23.3]} 6. exd6 {[%clk 0:02:51.2]} 6... cxd6 {[%clk
0:02:21.7]} 7. Nc3 {[%clk 0:02:46.7]} 7... Bg4 {[%clk 0:02:16.1]} 8. Be3 {[%clk
0:02:39.5]} 8... g6 {[%clk 0:02:16.1]} 9. b3 {[%clk 0:02:32.2]} 9... Bg7 {[%clk
0:02:13.6]} 10. Be2 {[%clk 0:02:32.6]} 10... O-O {[%clk 0:02:00.7]} 11. O-O
{[%clk 0:02:31.6]} 11... d5 {[%clk 0:02:01]} 12. c5 {[%clk 0:02:23.9]} 12... Nc8
{[%clk 0:01:52.7]} 13. h3 {[%clk 0:02:23.2]} 13... Bxf3 {[%clk 0:01:46.7]} 14.
Bxf3 {[%clk 0:02:23.8]} 14... e6 {[%clk 0:01:47.6]} 15. b4 {[%clk 0:02:14.7]}
15... a6 {[%clk 0:01:33.8]} 16. Rb1 {[%clk 0:02:13.4]} 16... N8e7 {[%clk
0:01:33.9]} 17. g4 {[%clk 0:02:12.2]} 17... f5 {[%clk 0:01:31.1]} 18. b5 {[%clk
0:02:04.6]} 18... axb5 {[%clk 0:01:27]} 19. Nxb5 {[%clk 0:02:05]} 19... Rxa2
{[%clk 0:01:20.5]} 20. Qb3 {[%clk 0:01:14.4]} 20... Qa5 {[%clk 0:01:20]} 21.
gxf5 {[%clk 0:00:53.3]} 21... Nxf5 {[%clk 0:01:19.6]} 22. Bg4 {[%clk 0:00:47.3]}
22... Nfxd4 {[%clk 0:01:19.2]} 23. Nxd4 {[%clk 0:00:43.3]} 23... Nxd4 {[%clk
0:01:20.1]} 24. Bxd4 {[%clk 0:00:38.6]} 24... Bxd4 {[%clk 0:01:21]} 25. Bxe6+
{[%clk 0:00:39.1]} 25... Kh8 {[%clk 0:01:21.6]} 26. Qxd5 {[%clk 0:00:34.6]}
26... Rd2 {[%clk 0:01:04.5]} 27. Kh1 {[%clk 0:00:24]} 27... Bg7 {[%clk
0:00:46.8]} 28. Rxb7 {[%clk 0:00:23.3]} 28... Rxd5 {[%clk 0:00:46.3]} 29. Bxd5
{[%clk 0:00:23.3]} 29... Qxc5 {[%clk 0:00:46.2]} 30. Bg2 {[%clk 0:00:22.2]}
30... Rxf2 {[%clk 0:00:45.7]} 31. Rd1 {[%clk 0:00:19.9]} 31... Rxg2 {[%clk
0:00:40.3]} 32. Rb8+ {[%clk 0:00:06.6]} 32... Bf8 {[%clk 0:00:40.5]} 33. Kxg2
{[%clk 0:00:07.5]} 33... Qc2+ {[%clk 0:00:40.8]} 34. Kg3 {[%clk 0:00:06.9]}
34... Qxd1 {[%clk 0:00:40.9]} 35. Rxf8+ {[%clk 0:00:07.6]} 35... Kg7 {[%clk
0:00:41.2]} 36. Rf2 {[%clk 0:00:08.5]} 36... Qg1+ {[%clk 0:00:40.3]} 37. Kf3
{[%clk 0:00:07.9]} 37... Kh6 {[%clk 0:00:40.2]} 38. Rg2 {[%clk 0:00:07.7]} 38...
Qd4 {[%clk 0:00:40.3]} 39. Kg3 {[%clk 0:00:08]} 39... Qe5+ {[%clk 0:00:40.7]}
40. Kf3 {[%clk 0:00:08.3]} 40... Kh5 {[%clk 0:00:41.3]} 41. Rg4 {[%clk
0:00:08.1]} 41... Qf5+ {[%clk 0:00:39.9]} 42. Kg3 {[%clk 0:00:08.3]} 42... Qxg4+
{[%clk 0:00:38.9]} 43. hxg4+ {[%clk 0:00:08.6]} 43... Kg5 {[%clk 0:00:39.8]} 44.
Kf3 {[%clk 0:00:04.2]} 44... Kh4 {[%clk 0:00:39.9]} 45. Kf4 {[%clk 0:00:04.1]}
45... h6 {[%clk 0:00:40.5]} 46. Kf3 {[%clk 0:00:01.6]} 46... g5 {[%clk
0:00:40.7]} 47. Kf2 {[%clk 0:00:02]} 47... Kxg4 {[%clk 0:00:41.6]} 0-1

[Event "Early-Titled-Tuesday-Blitz-May-07-2024"]
[Site "Chess.com"]
[Date "2024.05.07"]
[Round "4"]
[White "Silent-Killer100"]
[Black "Sokoloco"]
[Result "0-1"]
[WhiteElo "2568"]
[BlackElo "2803"]
[TimeControl "180+1"]
[EndTime "8:42:45 PDT"]
[Termination "Sokoloco won by resignation"]

1. e4 {[%clk 0:03:00.9]} 1... g6 {[%clk 0:02:55.7]} 2. d4 {[%clk 0:03:00.4]}
2... Bg7 {[%clk 0:02:55.8]} 3. Nc3 {[%clk 0:02:56.4]} 3... d6 {[%clk 0:02:55.7]}
4. Nf3 {[%clk 0:02:52.9]} 4... a6 {[%clk 0:02:55.2]} 5. Bf4 {[%clk 0:02:48.8]}
5... b5 {[%clk 0:02:50.7]} 6. Qd2 {[%clk 0:02:48.9]} 6... Bb7 {[%clk 0:02:48.7]}
7. Bd3 {[%clk 0:02:49.2]} 7... Nd7 {[%clk 0:02:47.8]} 8. O-O {[%clk 0:02:42.8]}
8... c5 {[%clk 0:02:44.6]} 9. dxc5 {[%clk 0:02:36.5]} 9... Nxc5 {[%clk
0:02:45.5]} 10. a3 {[%clk 0:02:32.2]} 10... Nf6 {[%clk 0:02:38.9]} 11. Rfe1
{[%clk 0:02:27.6]} 11... O-O {[%clk 0:02:32.7]} 12. Rad1 {[%clk 0:02:17.9]}
12... Re8 {[%clk 0:02:24.2]} 13. e5 {[%clk 0:01:34.8]} 13... Bxf3 {[%clk
0:02:10]} 14. gxf3 {[%clk 0:01:15.8]} 14... dxe5 {[%clk 0:02:10.2]} 15. Bxe5
{[%clk 0:01:15.4]} 15... Ncd7 {[%clk 0:01:28.7]} 16. Bg3 {[%clk 0:00:53]} 16...
Qb6 {[%clk 0:01:26.6]} 17. Be4 {[%clk 0:00:37.1]} 17... Nxe4 {[%clk 0:00:58.4]}
18. fxe4 {[%clk 0:00:28.1]} 18... Ne5 {[%clk 0:00:56.2]} 19. Qe2 {[%clk
0:00:17.2]} 19... e6 {[%clk 0:00:45.9]} 20. Nb1 {[%clk 0:00:17.3]} 20... a5
{[%clk 0:00:28.8]} 21. Kg2 {[%clk 0:00:17.3]} 21... Rac8 {[%clk 0:00:25]} 22. f4
{[%clk 0:00:16.6]} 22... Nc4 {[%clk 0:00:25.4]} 23. b3 {[%clk 0:00:16.8]} 23...
Nd6 {[%clk 0:00:20.6]} 24. f5 {[%clk 0:00:17.4]} 24... Nb7 {[%clk 0:00:13.3]}
25. fxg6 {[%clk 0:00:17.2]} 25... hxg6 {[%clk 0:00:13.3]} 26. Rf1 {[%clk
0:00:15.7]} 26... Qc6 {[%clk 0:00:13.9]} 27. Rf2 {[%clk 0:00:15.5]} 27... Nc5
{[%clk 0:00:14.3]} 28. Re1 {[%clk 0:00:11.5]} 28... f5 {[%clk 0:00:14.8]} 29.
Nd2 {[%clk 0:00:10.2]} 29... Bc3 {[%clk 0:00:15.5]} 30. Kg1 {[%clk 0:00:09.3]}
30... Nxe4 {[%clk 0:00:09.3]} 31. Nxe4 {[%clk 0:00:08.5]} 31... Bxe1 {[%clk
0:00:09.7]} 32. Nf6+ {[%clk 0:00:06.2]} 32... Kf7 {[%clk 0:00:10.2]} 33. Qxe1
{[%clk 0:00:03.8]} 33... Kxf6 {[%clk 0:00:10.7]} 34. Be5+ {[%clk 0:00:02.9]}
34... Kf7 {[%clk 0:00:10.9]} 35. Rg2 {[%clk 0:00:02.8]} 35... Qc5+ {[%clk
0:00:09.7]} 36. Kh1 {[%clk 0:00:02.7]} 36... Rcd8 {[%clk 0:00:10.2]} 37. Qg3
{[%clk 0:00:03.2]} 37... Rd1+ {[%clk 0:00:09.5]} 0-1

[Event "Early-Titled-Tuesday-Blitz-May-07-2024"]
[Site "Chess.com"]
[Date "2024.05.07"]
[Round "4"]
[White "Thebigsqueeze"]
[Black "agvega14"]
[Result "1-0"]
[WhiteElo "2365"]
[BlackElo "2186"]
[TimeControl "180+1"]
[EndTime "8:42:45 PDT"]
[Termination "Thebigsqueeze won by checkmate"]

1. d4 {[%clk 0:02:59]} 1... d5 {[%clk 0:02:51.8]} 2. Nf3 {[%clk 0:02:57.7]} 2...
Nf6 {[%clk 0:02:50.9]} 3. g3 {[%clk 0:02:57]} 3... Bf5 {[%clk 0:02:49.7]} 4. Bg2
{[%clk 0:02:56.8]} 4... e6 {[%clk 0:02:49.9]} 5. c4 {[%clk 0:02:56.6]} 5... c6
{[%clk 0:02:49.6]} 6. b3 {[%clk 0:02:54.6]} 6... Be7 {[%clk 0:02:48.9]} 7. Nh4
{[%clk 0:02:54.2]} 7... Bg4 {[%clk 0:02:48.5]} 8. h3 {[%clk 0:02:54.1]} 8... Bh5
{[%clk 0:02:48.4]} 9. g4 {[%clk 0:02:52.6]} 9... Nfd7 {[%clk 0:02:41.5]} 10. Nf3
{[%clk 0:02:37]} 10... Bg6 {[%clk 0:02:40.9]} 11. Nc3 {[%clk 0:02:37.4]} 11...
h5 {[%clk 0:02:33.7]} 12. g5 {[%clk 0:02:32.5]} 12... h4 {[%clk 0:02:29.4]} 13.
Bf4 {[%clk 0:02:23.5]} 13... Qa5 {[%clk 0:02:23.9]} 14. Rc1 {[%clk 0:02:17.3]}
14... Ba3 {[%clk 0:02:22]} 15. O-O {[%clk 0:02:14.2]} 15... Bxc1 {[%clk
0:02:19.6]} 16. Qxc1 {[%clk 0:02:14.9]} 16... Na6 {[%clk 0:02:00.7]} 17. Ne5
{[%clk 0:02:01]} 17... Nxe5 {[%clk 0:01:58.2]} 18. Bxe5 {[%clk 0:02:00.7]} 18...
O-O {[%clk 0:01:51.4]} 19. e4 {[%clk 0:02:00.5]} 19... dxc4 {[%clk 0:01:49.7]}
20. bxc4 {[%clk 0:01:59.6]} 20... Nb4 {[%clk 0:01:49.5]} 21. Qe3 {[%clk
0:01:46.8]} 21... Nc2 {[%clk 0:01:38.9]} 22. Qd2 {[%clk 0:01:43.7]} 22... Na3
{[%clk 0:01:35.2]} 23. Qd3 {[%clk 0:01:35.8]} 23... Qa6 {[%clk 0:01:24.1]} 24.
f4 {[%clk 0:01:28.6]} 24... Qxc4 {[%clk 0:01:22.2]} 25. Qf3 {[%clk 0:01:22.2]}
25... f6 {[%clk 0:01:02.5]} 26. gxf6 {[%clk 0:01:20.7]} 26... gxf6 {[%clk
0:01:01.7]} 27. Bd6 {[%clk 0:01:18.6]} 27... Qxd4+ {[%clk 0:01:01.3]} 28. Kh2
{[%clk 0:01:16.4]} 28... Qxd6 {[%clk 0:01:01.1]} 29. Qg4 {[%clk 0:01:14.8]}
29... Kf7 {[%clk 0:00:58]} 30. e5 {[%clk 0:01:12.7]} 30... Qd3 {[%clk 0:00:44]}
31. Qxh4 {[%clk 0:01:12.1]} 31... Ke8 {[%clk 0:00:19.8]} 32. Rf3 {[%clk
0:01:10.5]} 32... Qf5 {[%clk 0:00:17.9]} 33. exf6 {[%clk 0:01:08.8]} 33... Qxf6
{[%clk 0:00:16.8]} 34. Qg3 {[%clk 0:01:07.6]} 34... Bf5 {[%clk 0:00:16.5]} 35.
Re3 {[%clk 0:01:06.8]} 35... Nc4 {[%clk 0:00:15.6]} 36. Re1 {[%clk 0:01:05.6]}
36... Nd6 {[%clk 0:00:14.2]} 37. Ne2 {[%clk 0:00:53.6]} 37... Kd7 {[%clk
0:00:13.9]} 38. Rd1 {[%clk 0:00:52.6]} 38... Rg8 {[%clk 0:00:13.2]} 39. Qa3
{[%clk 0:00:49.7]} 39... Qe7 {[%clk 0:00:12.7]} 40. Ng3 {[%clk 0:00:47.7]} 40...
Kc7 {[%clk 0:00:12.8]} 41. Qa5+ {[%clk 0:00:46.2]} 41... b6 {[%clk 0:00:12.3]}
42. Qe5 {[%clk 0:00:46.1]} 42... Rad8 {[%clk 0:00:11.3]} 43. Nxf5 {[%clk
0:00:43.8]} 43... Rxg2+ {[%clk 0:00:08.9]} 44. Kxg2 {[%clk 0:00:43]} 44... Qd7
{[%clk 0:00:06.9]} 45. Nxd6 {[%clk 0:00:40.3]} 45... Rg8+ {[%clk 0:00:06.7]} 46.
Kh2 {[%clk 0:00:39.5]} 46... Kb8 {[%clk 0:00:06.1]} 47. Nb5+ {[%clk 0:00:33.2]}
47... Kb7 {[%clk 0:00:05.4]} 48. Rxd7+ {[%clk 0:00:33.2]} 48... Ka6 {[%clk
0:00:05.8]} 49. Rxa7# {[%clk 0:00:33.3]} 1-0

[Event "Early-Titled-Tuesday-Blitz-May-07-2024"]
[Site "Chess.com"]
[Date "2024.05.07"]
[Round "4"]
[White "AnaKuchava"]
[Black "stasOR4ik"]
[Result "1-0"]
[WhiteElo "2212"]
[BlackElo "2463"]
[TimeControl "180+1"]
[EndTime "8:42:46 PDT"]
[Termination "AnaKuchava won by resignation"]

1. d4 {[%clk 0:03:00.9]} 1... e6 {[%clk 0:02:58.4]} 2. Nf3 {[%clk 0:03:00.1]}
2... d5 {[%clk 0:02:58.9]} 3. c4 {[%clk 0:02:58.3]} 3... c6 {[%clk 0:02:58.5]}
4. Qb3 {[%clk 0:02:54.5]} 4... Nd7 {[%clk 0:02:56.7]} 5. Nc3 {[%clk 0:02:46.2]}
5... Ngf6 {[%clk 0:02:56.3]} 6. Bg5 {[%clk 0:02:43.6]} 6... Be7 {[%clk
0:02:55.9]} 7. e3 {[%clk 0:02:42.3]} 7... Ne4 {[%clk 0:02:54.1]} 8. Bxe7 {[%clk
0:02:40.6]} 8... Qxe7 {[%clk 0:02:55]} 9. Bd3 {[%clk 0:02:40.6]} 9... f5 {[%clk
0:02:55]} 10. O-O {[%clk 0:02:32.4]} 10... O-O {[%clk 0:02:51.4]} 11. cxd5
{[%clk 0:02:21.5]} 11... cxd5 {[%clk 0:02:50.7]} 12. Rfd1 {[%clk 0:02:03.2]}
12... a6 {[%clk 0:02:32.9]} 13. Rac1 {[%clk 0:02:01.5]} 13... g5 {[%clk
0:02:24.1]} 14. Bxe4 {[%clk 0:01:54.4]} 14... fxe4 {[%clk 0:02:23.4]} 15. Ne1
{[%clk 0:01:37.2]} 15... Nf6 {[%clk 0:02:13.3]} 16. Rc2 {[%clk 0:01:21.8]} 16...
Qd6 {[%clk 0:01:52.9]} 17. f3 {[%clk 0:01:17]} 17... exf3 {[%clk 0:01:50.1]} 18.
Nxf3 {[%clk 0:01:17.9]} 18... Ng4 {[%clk 0:01:46.8]} 19. Na4 {[%clk 0:01:08.9]}
19... Bd7 {[%clk 0:01:31.1]} 20. Nc5 {[%clk 0:01:02.9]} 20... Bc6 {[%clk
0:01:28.4]} 21. Nxb7 {[%clk 0:00:51.9]} 21... Bxb7 {[%clk 0:01:25.8]} 22. Qxb7
{[%clk 0:00:52.8]} 22... Rab8 {[%clk 0:01:20.5]} 23. Qa7 {[%clk 0:00:40]} 23...
Rf7 {[%clk 0:01:17.1]} 24. Rc6 {[%clk 0:00:32.9]} 24... Qxc6 {[%clk 0:00:53.4]}
25. Qxb8+ {[%clk 0:00:31.2]} 25... Rf8 {[%clk 0:00:54.1]} 26. Qb3 {[%clk
0:00:29.7]} 26... Qc7 {[%clk 0:00:47.9]} 27. h3 {[%clk 0:00:27.6]} 27... Rxf3
{[%clk 0:00:39.9]} 28. hxg4 {[%clk 0:00:25.7]} 28... Rg3 {[%clk 0:00:39.6]} 29.
Rf1 {[%clk 0:00:22.1]} 29... Rxg4 {[%clk 0:00:33.8]} 30. Qd1 {[%clk 0:00:20.4]}
30... Rh4 {[%clk 0:00:32.4]} 31. Qf3 {[%clk 0:00:19.9]} 31... Qh2+ {[%clk
0:00:14.9]} 32. Kf2 {[%clk 0:00:19.7]} 32... Re4 {[%clk 0:00:15]} 33. Ke2 {[%clk
0:00:17.3]} 33... Qf4 {[%clk 0:00:14.9]} 34. Qxf4 {[%clk 0:00:15.8]} 34... gxf4
{[%clk 0:00:15.1]} 35. Rxf4 {[%clk 0:00:16.7]} 35... Rxf4 {[%clk 0:00:13.3]} 36.
exf4 {[%clk 0:00:17.6]} 36... Kf7 {[%clk 0:00:13.5]} 37. b4 {[%clk 0:00:16.7]}
37... Kf6 {[%clk 0:00:13.4]} 38. a4 {[%clk 0:00:16.5]} 38... Kf5 {[%clk
0:00:14]} 39. Kf3 {[%clk 0:00:17.2]} 39... Kf6 {[%clk 0:00:13.6]} 40. g4 {[%clk
0:00:17.5]} 40... Ke7 {[%clk 0:00:13.9]} 41. f5 {[%clk 0:00:17.3]} 41... exf5
{[%clk 0:00:12.8]} 42. gxf5 {[%clk 0:00:18.2]} 42... Kf6 {[%clk 0:00:13.1]} 43.
Kf4 {[%clk 0:00:18.8]} 43... h5 {[%clk 0:00:13.5]} 44. b5 {[%clk 0:00:17.1]}
44... axb5 {[%clk 0:00:13.9]} 45. axb5 {[%clk 0:00:18]} 45... h4 {[%clk
0:00:14.5]} 46. Kg4 {[%clk 0:00:18.2]} 46... h3 {[%clk 0:00:14.2]} 47. Kxh3
{[%clk 0:00:18.4]} 47... Kxf5 {[%clk 0:00:15]} 48. b6 {[%clk 0:00:18.8]} 48...
Ke4 {[%clk 0:00:15.7]} 49. b7 {[%clk 0:00:18.5]} 49... Kxd4 {[%clk 0:00:16.6]}
50. b8=Q {[%clk 0:00:19.4]} 50... Ke3 {[%clk 0:00:17.3]} 51. Qe5+ {[%clk
0:00:19.4]} 51... Kf2 {[%clk 0:00:17.5]} 52. Qxd5 {[%clk 0:00:19.6]} 1-0

[Event "Early-Titled-Tuesday-Blitz-May-07-2024"]
[Site "Chess.com"]
[Date "2024.05.07"]
[Round "4"]
[White "nuadvaga"]
[Black "Javylavilla"]
[Result "1-0"]
[WhiteElo "2157"]
[BlackElo "2297"]
[TimeControl "180+1"]
[EndTime "8:42:47 PDT"]
[Termination "nuadvaga won by resignation"]

1. d4 {[%clk 0:03:00.9]} 1... Nf6 {[%clk 0:02:58.6]} 2. f3 {[%clk 0:02:56.5]}
2... d5 {[%clk 0:02:57.8]} 3. e4 {[%clk 0:02:56.4]} 3... dxe4 {[%clk 0:02:57.4]}
4. fxe4 {[%clk 0:02:57.3]} 4... Nxe4 {[%clk 0:02:57.8]} 5. Nc3 {[%clk
0:02:57.6]} 5... Nxc3 {[%clk 0:02:57.7]} 6. bxc3 {[%clk 0:02:58.5]} 6... e6
{[%clk 0:02:58.1]} 7. Nf3 {[%clk 0:02:54.7]} 7... c5 {[%clk 0:02:57.3]} 8. Bc4
{[%clk 0:02:54.7]} 8... Nc6 {[%clk 0:02:57.2]} 9. O-O {[%clk 0:02:51.4]} 9...
Be7 {[%clk 0:02:57.1]} 10. Be3 {[%clk 0:02:41.1]} 10... cxd4 {[%clk 0:02:54.3]}
11. cxd4 {[%clk 0:02:40.4]} 11... O-O {[%clk 0:02:54.5]} 12. c3 {[%clk
0:02:38.4]} 12... b6 {[%clk 0:02:53.2]} 13. Qe2 {[%clk 0:02:23.8]} 13... Bb7
{[%clk 0:02:51.2]} 14. Rad1 {[%clk 0:02:22.3]} 14... Qc7 {[%clk 0:02:51.4]} 15.
Ng5 {[%clk 0:02:19.1]} 15... h6 {[%clk 0:02:49.2]} 16. Nxf7 {[%clk 0:02:16]}
16... Rxf7 {[%clk 0:02:45.1]} 17. Bxe6 {[%clk 0:02:15.8]} 17... Nd8 {[%clk
0:02:45.8]} 18. Bb3 {[%clk 0:02:12.2]} 18... Bf6 {[%clk 0:02:41.7]} 19. Bxh6
{[%clk 0:02:07]} 19... Qc6 {[%clk 0:02:27.9]} 20. d5 {[%clk 0:01:48.1]} 20...
Qc5+ {[%clk 0:02:12.5]} 21. Be3 {[%clk 0:01:47.6]} 21... Qxc3 {[%clk 0:02:12.4]}
22. d6 {[%clk 0:01:44.2]} 22... a5 {[%clk 0:02:04.2]} 23. Rc1 {[%clk 0:01:25.2]}
23... Qe5 {[%clk 0:02:03.2]} 24. Qd2 {[%clk 0:01:17.5]} 24... a4 {[%clk
0:02:01.4]} 25. Bxf7+ {[%clk 0:01:08.7]} 25... Nxf7 {[%clk 0:02:02.3]} 26. Bxb6
{[%clk 0:01:07.6]} 26... Nxd6 {[%clk 0:01:59.7]} 27. Rfe1 {[%clk 0:00:55.7]}
27... Ne4 {[%clk 0:01:56.9]} 28. Qb4 {[%clk 0:00:43.4]} 28... Qg5 {[%clk
0:01:52.3]} 29. Rc2 {[%clk 0:00:37.3]} 29... Rf8 {[%clk 0:01:45.1]} 30. Be3
{[%clk 0:00:35.9]} 30... Qg6 {[%clk 0:01:40.8]} 31. Qxb7 {[%clk 0:00:33.2]}
31... Nd6 {[%clk 0:01:36.6]} 32. Qd5+ {[%clk 0:00:31.1]} 32... Kh8 {[%clk
0:01:35.5]} 33. Rce2 {[%clk 0:00:25.5]} 33... Nf5 {[%clk 0:01:35.2]} 34. Bc5
{[%clk 0:00:23.2]} 34... Rd8 {[%clk 0:01:33.8]} 35. Qf3 {[%clk 0:00:20.5]} 35...
Nh4 {[%clk 0:01:31.7]} 36. Qe4 {[%clk 0:00:19.2]} 36... Qg5 {[%clk 0:01:28.5]}
37. Bf2 {[%clk 0:00:14.7]} 37... Rd4 {[%clk 0:01:19.2]} 38. Bxh4 {[%clk
0:00:11.2]} 38... Qxh4 {[%clk 0:01:15.7]} 39. Qxh4+ {[%clk 0:00:10.3]} 39...
Rxh4 {[%clk 0:01:16.6]} 40. Rf1 {[%clk 0:00:10.7]} 40... a3 {[%clk 0:01:14.4]}
41. g3 {[%clk 0:00:11.1]} 41... Rb4 {[%clk 0:01:14]} 42. Rf3 {[%clk 0:00:11.1]}
42... Rb2 {[%clk 0:01:12.3]} 43. Rff2 {[%clk 0:00:10.7]} 43... Rb1+ {[%clk
0:01:11.9]} 44. Kg2 {[%clk 0:00:10.9]} 44... Bb2 {[%clk 0:01:12.8]} 45. Rc2
{[%clk 0:00:09.5]} 45... Ra1 {[%clk 0:01:12.9]} 46. Rxb2 {[%clk 0:00:09.7]}
46... axb2 {[%clk 0:01:12.4]} 47. Rxb2 {[%clk 0:00:10.6]} 47... Rc1 {[%clk
0:01:12.7]} 48. Kh3 {[%clk 0:00:10.6]} 48... Rc5 {[%clk 0:01:13.2]} 49. Kg4
{[%clk 0:00:10.5]} 49... Kh7 {[%clk 0:01:13.6]} 50. Kh3 {[%clk 0:00:11.1]} 50...
Kg6 {[%clk 0:01:13.6]} 51. Kg2 {[%clk 0:00:11.7]} 51... Kg5 {[%clk 0:01:13.8]}
52. h3 {[%clk 0:00:12.6]} 52... Rc3 {[%clk 0:01:13.3]} 53. Rf2 {[%clk
0:00:12.8]} 53... Ra3 {[%clk 0:01:13.3]} 54. Rc2 {[%clk 0:00:12.6]} 54... Kf5
{[%clk 0:01:13.1]} 55. Rc5+ {[%clk 0:00:12.4]} 55... Ke4 {[%clk 0:01:13]} 56.
Rc2 {[%clk 0:00:13.3]} 56... Kd3 {[%clk 0:01:12.8]} 57. Rf2 {[%clk 0:00:14]}
57... Ke4 {[%clk 0:01:12.5]} 58. Rf4+ {[%clk 0:00:13.5]} 58... Ke5 {[%clk
0:01:12.6]} 59. Rf2 {[%clk 0:00:14.4]} 59... g5 {[%clk 0:01:12.8]} 60. h4 {[%clk
0:00:15]} 60... g4 {[%clk 0:01:10.5]} 61. h5 {[%clk 0:00:14.7]} 61... Ke4 {[%clk
0:01:10.4]} 62. Rf4+ {[%clk 0:00:12.5]} 62... Ke3 {[%clk 0:01:10.2]} 63. Rxg4
{[%clk 0:00:13.4]} 63... Rxa2+ {[%clk 0:01:10.6]} 64. Kh3 {[%clk 0:00:14.3]}
64... Ra6 {[%clk 0:01:11]} 65. Rg6 {[%clk 0:00:14.1]} 65... Ra1 {[%clk
0:01:10.2]} 66. Kh4 {[%clk 0:00:14.2]} 66... Kf3 {[%clk 0:01:10.6]} 67. g4
{[%clk 0:00:14.1]} 67... Kf4 {[%clk 0:01:10]} 68. Rf6+ {[%clk 0:00:13.5]} 68...
Ke5 {[%clk 0:01:10.3]} 69. Rf7 {[%clk 0:00:14]} 69... Rh1+ {[%clk 0:01:08.9]}
70. Kg5 {[%clk 0:00:13.7]} 70... Rg1 {[%clk 0:01:09.8]} 71. Re7+ {[%clk
0:00:13.9]} 71... Kd6 {[%clk 0:01:09.6]} 72. Re2 {[%clk 0:00:14.4]} 1-0

[Event "Early-Titled-Tuesday-Blitz-May-07-2024"]
[Site "Chess.com"]
[Date "2024.05.07"]
[Round "4"]
[White "th3d4rkness"]
[Black "savitha1030"]
[Result "0-1"]
[WhiteElo "2203"]
[BlackElo "2479"]
[TimeControl "180+1"]
[EndTime "8:42:48 PDT"]
[Termination "savitha1030 won by resignation"]

1. e4 {[%clk 0:03:00.9]} 1... c5 {[%clk 0:02:58.9]} 2. Nc3 {[%clk 0:02:59.9]}
2... Nc6 {[%clk 0:02:58.3]} 3. Bb5 {[%clk 0:02:58.2]} 3... d6 {[%clk 0:02:57.4]}
4. Bxc6+ {[%clk 0:02:53.5]} 4... bxc6 {[%clk 0:02:56.9]} 5. f4 {[%clk
0:02:52.8]} 5... Nf6 {[%clk 0:02:57.4]} 6. Nf3 {[%clk 0:02:51]} 6... g6 {[%clk
0:02:58]} 7. O-O {[%clk 0:02:50.4]} 7... Bg7 {[%clk 0:02:57.3]} 8. d3 {[%clk
0:02:49.5]} 8... O-O {[%clk 0:02:57.8]} 9. Qe1 {[%clk 0:02:49.2]} 9... Ba6
{[%clk 0:02:57]} 10. Qh4 {[%clk 0:02:44.1]} 10... d5 {[%clk 0:02:56]} 11. e5
{[%clk 0:02:38]} 11... Ne8 {[%clk 0:02:56.4]} 12. f5 {[%clk 0:02:30.3]} 12... f6
{[%clk 0:02:32.7]} 13. Bh6 {[%clk 0:02:04.4]} 13... Bc8 {[%clk 0:02:24.9]} 14.
fxg6 {[%clk 0:01:56.7]} 14... hxg6 {[%clk 0:02:24.2]} 15. Bxg7 {[%clk
0:01:55.9]} 15... Nxg7 {[%clk 0:02:25.1]} 16. exf6 {[%clk 0:01:50.5]} 16... exf6
{[%clk 0:02:26]} 17. Qg3 {[%clk 0:01:43.4]} 17... g5 {[%clk 0:02:22]} 18. Rae1
{[%clk 0:01:40.5]} 18... Bf5 {[%clk 0:02:14.6]} 19. Na4 {[%clk 0:01:29.3]} 19...
Qa5 {[%clk 0:01:47.8]} 20. b3 {[%clk 0:01:28.2]} 20... Rae8 {[%clk 0:01:47.7]}
21. Rxe8 {[%clk 0:01:25.6]} 21... Rxe8 {[%clk 0:01:48.6]} 22. Re1 {[%clk
0:01:26.1]} 22... Rxe1+ {[%clk 0:01:47.5]} 23. Qxe1 {[%clk 0:01:25.9]} 23...
Qxe1+ {[%clk 0:01:47.6]} 24. Nxe1 {[%clk 0:01:26.8]} 24... Ne6 {[%clk 0:01:47]}
25. c3 {[%clk 0:01:20.8]} 25... Kf7 {[%clk 0:01:43.6]} 26. g3 {[%clk 0:01:20.8]}
26... Ke7 {[%clk 0:01:44.1]} 27. Kf2 {[%clk 0:01:17.8]} 27... Kd6 {[%clk
0:01:44.5]} 28. Kf3 {[%clk 0:01:17]} 28... Bh7 {[%clk 0:01:25.8]} 29. Nb2 {[%clk
0:01:16.2]} 29... Nc7 {[%clk 0:01:21.3]} 30. a4 {[%clk 0:01:14.5]} 30... Bf5
{[%clk 0:01:05.4]} 31. Ng2 {[%clk 0:01:13.2]} 31... Ne6 {[%clk 0:01:05.2]} 32.
Ne3 {[%clk 0:01:12.1]} 32... Bh7 {[%clk 0:01:05.7]} 33. Ng4 {[%clk 0:01:09.6]}
33... f5 {[%clk 0:01:06.1]} 34. Ne3 {[%clk 0:01:03.9]} 34... d4 {[%clk 0:01:01]}
35. Nec4+ {[%clk 0:00:58.3]} 35... Kd5 {[%clk 0:01:01.4]} 36. cxd4 {[%clk
0:00:55.9]} 36... Nxd4+ {[%clk 0:01:00.8]} 37. Ke3 {[%clk 0:00:54.6]} 37... Nxb3
{[%clk 0:00:59.2]} 38. Nd1 {[%clk 0:00:51.6]} 38... f4+ {[%clk 0:00:50.3]} 39.
gxf4 {[%clk 0:00:51.3]} 39... gxf4+ {[%clk 0:00:51.2]} 40. Kxf4 {[%clk
0:00:50.5]} 40... Bxd3 {[%clk 0:00:51.7]} 41. Nde3+ {[%clk 0:00:48.5]} 41... Kd4
{[%clk 0:00:49.7]} 42. Ne5 {[%clk 0:00:47.1]} 42... Na5 {[%clk 0:00:43.7]} 43.
h4 {[%clk 0:00:44.8]} 43... c4 {[%clk 0:00:43.2]} 44. h5 {[%clk 0:00:44.9]}
44... c3 {[%clk 0:00:43.9]} 45. Nxd3 {[%clk 0:00:39.7]} 45... Kxd3 {[%clk
0:00:43.5]} 46. h6 {[%clk 0:00:39.9]} 46... Nc4 {[%clk 0:00:30.5]} 47. Nxc4
{[%clk 0:00:35.8]} 47... c2 {[%clk 0:00:28.5]} 48. Nb2+ {[%clk 0:00:31.2]} 48...
Kc3 {[%clk 0:00:24.8]} 49. h7 {[%clk 0:00:21]} 49... c1=Q+ {[%clk 0:00:24]} 50.
Kf5 {[%clk 0:00:18.9]} 50... Qh6 {[%clk 0:00:24.6]} 51. Nd1+ {[%clk 0:00:16]}
51... Kd2 {[%clk 0:00:24.5]} 0-1